Cogmind - Beta 13 @@@ ROGUE MODE // 2024.02.27 @ 19:29:10 Player: Benkyo Result: Destroyed by G-34 Mercenary with Small Laser Performance ------------- Evolutions (0) 0 Regions Visited (2) 400 Robots Destroyed (26) 130 Value Destroyed (609) 609 Prototype IDs (3) 60 Alien Tech Used (0) 0 Bonus (0) 0 TOTAL SCORE: 1199 Bonus ------- None Cogmind --------- Core Integrity 0/250 Matter 162/300 Energy 250/250 System Corruption 0% Temperature Cool (6) Movement Treading (160) Location -10/Subcaves Parts ------- > --- POWER (1) -------- Ion Engine > --- PROPULSION (2) --- Light Treads Light Treads > --- UTILITY (2) ------ Large Storage Unit Light Armor Plating > --- WEAPON (2) ------- Light Cannon Light Cannon > --- INVENTORY (15) --- Compact Wheel Compact Wheel Huge Storage Unit Structural Scanner Signal Interpreter Propulsion Shielding EM Pulse Gun Medium Laser Light Cannon Light Cannon Grenade Launcher Grenade Launcher Datajack Peak State ------------ > --- POWER ------------ Ion Engine > --- PROPULSION ------- Light Treads Light Treads > --- UTILITY ---------- Small Storage Unit Improved Terrain Scanner > --- WEAPON ----------- Medium Laser Light Assault Rifle > --- INVENTORY -------- Ion Engine Compact Wheel Compact Wheel Compact Wheel Compact Wheel EM Pulse Gun [Rating: 9] Favorites ----------- Power Ion Engine Engine Ion Engine Propulsion Light Treads Treads Light Treads Utility Small Storage Unit Device Structural Scanner Storage Small Storage Unit Protection Light Armor Plating Weapon Light Assault Rifle Energy Gun Medium Laser Ballistic Gun Light Assault Rifle Ballistic Cannon Light Cannon Launcher Grenade Launcher Build | -11 -10 -10 ------- Run | Yrd Mat Sub Slots Evolved . | . . . Power . | . . . Propulsion . | . . . Utility . | . . . Weapon . | . . . Parts Attached 23 | 7 16 . Power 2 | 1 1 . Engine 2 | 1 1 . Core . | . . . Reactor . | . . . Propulsion 5 | 2 3 . Treads 5 | 2 3 . Leg . | . . . Wheel . | . . . Hover . | . . . Flight . | . . . Utility 6 | 2 4 . Device 2 | 1 1 . Storage 3 | 1 2 . Processor . | . . . Hackware . | . . . Protection 1 | . 1 . Artifact . | . . . Weapon 10 | 2 8 . Energy Gun 3 | 1 2 . Energy Cannon . | . . . Ballistic Gun 2 | 1 1 . Ballistic Cannon 3 | . 3 . Launcher 2 | . 2 . Special Weapon . | . . . Impact Weapon . | . . . Slashing Weapon . | . . . Piercing Weapon . | . . . Special Melee Weapon . | . . . Unidentified Prototypes . | . . . Parts Lost 1 | . 1 . Power . | . . . Propulsion . | . . . Utility . | . . . Weapon 1 | . 1 . Highest Loss Streak 1 | . 1 . To Critical Strikes . | . . . Average Slot Usage (%) 99 | . 99 100 Engine 14 | . 14 14 Treads 27 | . 27 28 Device 11 | . 12 . Storage 14 | . 14 14 Protection 2 | . 1 14 Energy Gun 12 | . 12 . Ballistic Gun 13 | . 13 . Ballistic Cannon 1 | . 1 28 Naked Turns . | . . . Heaviest Build 91 | 14 91 34 Greatest Support 40 | 40 40 40 Greatest Overweight (x) 2 | . 2 . Average Overweight (x) . | . . . Largest Inventory Capacity 25 | 8 25 15 Average Capacity 14 | 7 15 15 Most Carried 16 | 7 16 13 Average Carried 8 | 5 9 13 Final Capacity 15 | 8 15 15 Final Carried 13 | 7 13 13 Class Distribution -------------------- 100% | Mutant Dominant Class ---------------- Mutant | -10/Materials Mutant | -10/Subcaves Resources | -11 -10 -10 ----------- Run | Yrd Mat Sub Matter Collected 484 | 278 206 . Remotely . | . . . Salvage Created 681 | 98 518 65 Parts 41 | 7 33 1 Haulers Intercepted . | . . . Recyclers Shooed . | . . . Parts Field Recycled . | . . . Retrieved Matter . | . . . Parts Self-Destructed 1 | . . 1 Prevented . | . . . Kills | -11 -10 -10 ------- Run | Yrd Mat Sub Combat Hostiles Destroyed 19 | . 17 2 Guns 10 | . 10 . Cannons 4 | . 2 2 AOE 5 | . 5 . Classes Destroyed 7 | 2 4 1 Builder 1 | . 1 . Tunneler 2 | 2 . . Recycler 1 | 1 . . Watcher 3 | . 3 . Swarmer 6 | . 6 . Grunt 12 | . 11 1 Sentry 1 | . . 1 Best Kill Streak 5 | 1 5 2 Combat Bots Only 4 | . 4 2 Max Kills in Single Turn 3 | 1 3 1 Gunslinging . | . . . Exploded 3 | . 3 . Melee . | . . . Uniques/NPCs Destroyed . | . . . Combat | -11 -10 -10 -------- Run | Yrd Mat Sub Hostile Shots Fired 97 | . 77 20 Missed 20 | . 16 4 Damage Taken 865 | . 657 208 Core 250 | . 172 78 Absorbed by Shields . | . . . Regen/Repaired (Parts) 221 | . 221 . Core Remaining (%) 100 | 100 . . Volleys Fired 78 | 8 59 11 Largest 2 | 2 2 2 Hottest 70 | 70 70 70 Shots Fired 150 | 16 112 22 Gun 120 | 16 104 . Cannon 28 | . 6 22 Launcher 2 | . 2 . Special . | . . . Kinetic 93 | 8 63 22 Thermal 55 | 8 47 . Explosive 2 | . 2 . Electromagnetic . | . . . Robot Hit Streak 16 | 3 16 9 Robot Miss Streak 7 | 1 7 2 Penetration Max . | . . . Secondary Targets 1 | . 1 . Max Gunslinging Chain 1 | . 1 . Shots Hit Robots 100 | 9 74 17 Core Hits 41 | 4 35 2 Critical Kills . | . . . Critical Parts Destroyed . | . . . Critical Strikes 5 | . 3 2 Burn 3 | . 3 . Blast 2 | . . 2 Melee Attacks . | . . . Impact . | . . . Slashing . | . . . Piercing . | . . . Sneak Attacks . | . . . Combat Hostiles . | . . . Follow-up Attacks . | . . . Damage Inflicted 1517 | 106 1106 305 Guns 852 | 106 746 . Cannons 393 | . 88 305 Explosions 272 | . 272 . Melee . | . . . Ramming . | . . . Kinetic 730 | 21 404 305 Thermal 515 | 85 430 . Explosive 272 | . 272 . Electromagnetic . | . . . Impact . | . . . Slashing . | . . . Piercing . | . . . Highest Corruption . | . . . Average Corruption . | . . . Corruption Purged . | . . . Corruption Blocked . | . . . Overload Shots . | . . . Overflow Damage 28 | . 28 . Projectiles . | . . . Explosions 28 | . 28 . Melee . | . . . Knockbacks 1 | . 1 . Impact . | . . . Kinetic 1 | . 1 . Secondary . | . . . Self-Inflicted Damage 43 | . 43 . Shots 2 | . 2 . Rammed . | . . . Targets Rammed . | . . . Kicked . | . . . Crushed . | . . . Highest Temperature 258 | 80 258 . Average Temperature 63 | 35 67 . Received Heat Transfer 336 | . 252 84 Siege Activations . | . . . Robots Corrupted . | . . . Combat Hostiles . | . . . Parts Fried . | . . . Impact Corruptions . | . . . Robots Melted . | . . . Combat Hostiles . | . . . Parts Melted 4 | 1 3 . Heat Transferred 1702 | 259 1443 . Parts Sabotaged . | . . . Parts Stolen . | . . . Parts Stripped . | . . . Power Chain Reactions . | . . . Alert | -11 -10 -10 ------- Run | Yrd Mat Sub Peak Influence 313 | 15 313 . Initial 9 | . 9 . Average 138 | 7 147 . Maximum Alert Level 1 | . 1 . Low Security (%) 81 | 100 79 . Level 1 18 | . 20 . Level 2 . | . . . Level 3 . | . . . Level 4 . | . . . Level 5 . | . . . High Security . | . . . Max Security . | . . . Squads Dispatched 5 | . 5 . Investigation 3 | . 3 . Extermination . | . . . Reinforcement 2 | . 2 . Assault . | . . . Garrison . | . . . Intercept . | . . . Searches Triggered . | . . . Construction Impeded . | . . . Haulers Reinforced . | . . . Active Scanning Responses . | . . . Cargo Convoy Interrupts . | . . . Stealth | -11 -10 -10 --------- Run | Yrd Mat Sub Distress Signals 1 | . 1 . Communications Jammed . | . . . Distress Signals . | . . . Times Spotted 24 | . 21 3 Peak Tracking Total 4 | . 4 3 Tactical Retreats . | . . . Traps | -11 -10 -10 ------- Run | Yrd Mat Sub Traps Triggered 2 | . 2 . Indirectly . | . . . Trap Hack Attempts . | . . . Triggered . | . . . Disarmed 7 | . 7 . Reprogrammed . | . . . Reused . | . . . Traps Extracted . | . . . Installed . | . . . Triggered . | . . . Machines | -11 -10 -10 ---------- Run | Yrd Mat Sub Machines Disabled 1 | . 1 . Max in Single Turn 1 | . 1 . Machines Repaired . | . . . Machines Dismantled . | . . . Machines Sabotaged . | . . . Overloaded Fab Kills . | . . . Hacking | -11 -10 -10 --------- Run | Yrd Mat Sub Machines Accessed 9 | . 9 . Terminals 6 | . 6 . Fabricators . | . . . Repair Stations 1 | . 1 . Recycling Units 2 | . 2 . Scanalyzers . | . . . Garrison Access . | . . . Total Hacks 29 | . 29 . Successful 16 | . 16 . Failed 13 | . 13 . Catastrophic . | . . . Database Lockouts . | . . . Manual 11 | . 11 . Terminals 19 | . 19 . Fabricators . | . . . Repair Stations 6 | . 6 . Recycling Units 4 | . 4 . Scanalyzers . | . . . Garrison Access . | . . . Terminal Hacks 8 | . 8 . Robot Analysis 3 | . 3 . Prototype ID Bank 2 | . 2 . Disarm Traps 2 | . 2 . Zone Layout 1 | . 1 . Fabricator Hacks . | . . . Repair Station Hacks 4 | . 4 . Scan Component 2 | . 2 . Repair 2 | . 2 . Recycling Unit Hacks 2 | . 2 . Retrieve Components 2 | . 2 . Scanalyzer . | . . . Garrison Access Hacks . | . . . Unauthorized Hacks 2 | . 2 . Terminals . | . . . Fabricators . | . . . Repair Stations . | . . . Recycling Units 2 | . 2 . Tunnel 2 | . 2 . Scanalyzers . | . . . Garrison Access . | . . . Data Cores Recovered . | . . . Used . | . . . Hacking Detections 7 | . 7 . Full Trace Events 2 | . 2 . Feedback Events . | . . . Feedback Blocked . | . . . Robot Schematics Acquired . | . . . Robots Built . | . . . Authchips . | . . . Time . | . . . Total Robot Build Rating . | . . . Part Schematics Acquired . | . . . Parts Built . | . . . Authchips . | . . . Time . | . . . Total Part Build Rating . | . . . Parts Repaired 2 | . 2 . Time 52 | . 52 . Parts Recycled . | . . . Recycled Matter . | . . . Retrieved Matter . | . . . Retrieved Components 11 | . 11 . Parts Scanalyzed . | . . . Part Schematics Acquired . | . . . Parts Damaged . | . . . Bothacking | -11 -10 -10 ------------ Run | Yrd Mat Sub Used RIF Installer . | . . . Robots Hacked . | . . . Non-combat . | . . . Combat . | . . . Robot Hacks Applied . | . . . Relay Couplers Released . | . . . Fabnet Peak Effective % . | . . . Robots Rewired . | . . . Allies Hacked . | . . . Hacks Repelled . | . . . Allies | -11 -10 -10 -------- Run | Yrd Mat Sub Total Allies . | . . . Largest Group . | . . . Highest-Rated Group . | . . . Highest-Rated Ally . | . . . Total Orders . | . . . Ally Attacks . | . . . Total Damage . | . . . Kills . | . . . Allies Corrupted . | . . . Allies Melted . | . . . Intel | -11 -10 -10 ------- Run | Yrd Mat Sub Robot Analysis Total 3 | . 3 . Derelict Logs Recovered . | . . . Drone Launches . | . . . Drone Recoveries . | . . . Exploration | -11 -10 -10 ------------- Run | Yrd Mat Sub Turns Passed 1946 | 124 1765 57 Spaces Moved 799 | 63 722 14 Core 18 | 18 . . Treads 781 | 45 722 14 Legs . | . . . Wheels . | . . . Hover . | . . . Flight . | . . . Fastest Speed 50 | 50 160 160 Average Speed 195 | 128 201 160 Slowest Speed 320 | 160 320 160 Overloaded Moves . | . . . Propulsion Burnouts . | . . . Robots Hopped . | . . . Cave-ins Triggered . | . . . Exploration Rate (%) 34 | 4 98 2 Regions Visited 2 Branch Regions 1 Pre-discovered Areas 2 | . 2 . Known Exits Taken . | . . . Unknown Exits Taken 2 | 1 1 . Scrap Searched . | . . . Spaces Dug 3 | . 3 . Terrain Destroyed 6 | . 6 . Melee . | . . . Projectile . | . . . AOE 6 | . 6 . Terrain Rammed . | . . . Walls Destroyed . | . . . Machines Disabled . | . . . Actions | -11 -10 -10 --------- Run | Yrd Mat Sub Total 1044 | 89 927 28 Wait 115 | 3 109 3 Move 797 | 62 721 14 Hop . | . . . Pick Up 21 | 9 12 . Fast Attach 10 | 5 5 . Attach 3 | 2 1 . Detach 1 | . 1 . Swap 10 | . 10 . Drop 9 | . 9 . Fire 78 | 8 59 11 Melee . | . . . Ram . | . . . Kick . | . . . Crush . | . . . Escape Stasis . | . . . Rewire . | . . . Trap . | . . . Miscellaneous . | . . . Route ------- -11/Scrapyard -10/Materials (discovered 6 exits: [*Mat x3] / [*Min x2] / [*Sub]) -10/Subcaves History --------- Turn | Location | Event 19 | -11/Scrapyard | Discovered new exit (range 15) 125 | -11/Scrapyard | Entered Materials 314 | -10/Materials | Build established: Mutant 510 | -10/Materials | Discovered new exit (range 16) 737 | -10/Materials | Discovered new exit (range 15) 802 | -10/Materials | Discovered new exit (range 10) 1000 | -10/Materials | Core integrity fell below 50% 1078 | -10/Materials | Repaired Lgt. Treads 1106 | -10/Materials | Repaired Lgt. Treads 1354 | -10/Materials | Discovered new exit (range 15) 1691 | -10/Materials | Discovered new exit (range 16) 1867 | -10/Materials | Discovered new exit (range 13) 1890 | -10/Materials | Entered Subcaves 1925 | -10/Subcaves | Core integrity fell below 20% 1947 | -10/Subcaves | Destroyed by G-34 Mercenary with Small Laser Last Messages --------------- 01382_ Acquired Lgt. Cannon. 01476_ Acquired Datajack. 01644_ Acquired Lgt. Armor Plating. 01658_ Acquired Lgt. Cannon. 01674_ Acquired Propulsion Shielding. 01691_ EXIT=FOUND 01730_ Acquired Lrg. Storage Unit. 01731_ Dropped Lgt. Assault Rifle. 01734_ Dropped Ion Engine. 01745_ U-05 Engineer lays Concrete. 01867_ EXIT=FOUND 01890_ Dropped Lgt. Assault Rifle. LOCATION=UNKNOWN AMBIENT_HEAT=-10 GOAL=ESCAPE 01922_ G-34 Mercenary destroyed. 01934_ Aluminum Leg fries itself beyond repair. 01934_ Y-45 Defender Beam Rifle blasted off. 01934_ Y-45 Defender destroyed. 01943_ G-34 Mercenary Ion Engine blasted off. Map ----- +----------------------------------------------------+ | ?????????????????????????????????????????????????? | | ?????????????????????????????????????????????????? | | ?????????????????????????????????????????????????? | | ?????????????????????????????????????????????????? | | ?????????????????????????????????????????????????? | | ?????????????????????????????????????????????????? | | ?????????????????????????????????????????????????? | | ?????????????????????????????????????????????????? | | ?????????????????????????????????????????????????? | | ?????????????????????????????????????????????????? | | ?????????????????????????????????????????????????? | | ?????????????????????????????????????????????????? | | ?????????????????????????????????????????????????? | | ?????????????????????????????????????????????????? | | ???????????????? ????????????????????????????????? | | ????????????????# ???????????????????????????????? | | ????????????????# #??????????????????????????????? | | ????????????????# ??????????????????????????????? | | ???????????????? ?????????????????????????????? | | ????????????????? ?????????????????????????????? | | ?????????????????? ????????????????????????????? | | ??????????????????? ????????????????????????????? | | ???????????????????? ???????????????????????????? | | ????????????????????# ???###?????????????????????? | | ????????????????????# ?##g##????????????????????? | | ?????????????????????# ##@# ##??????###?##???????? | | ??????????????????????#%%### ##????? # ????????? | | ??????????????????????##[#?## ##??? ?????????? | | ??????????????????????? ##?## #### ???????????? | | ??????????????????????# ???# # #????????????? | | ??????????????????????# # ### #### #? | | ??????????????????????# #? | | ??????????????????????# ## #? | | ?????????????????????????# ## # ## ##???? | | ?????????????????????????##?## ##??#????????? | | ?????????????????????????????## #????????????? | | ??????????????????????????????##### #???????????? | | ???????????????????????????????????###???????????? | | ?????????????????????????????????????????????????? | | ?????????????????????????????????????????????????? | | ?????????????????????????????????????????????????? | | ?????????????????????????????????????????????????? | | ?????????????????????????????????????????????????? | | ?????????????????????????????????????????????????? | | ?????????????????????????????????????????????????? | | ?????????????????????????????????????????????????? | | ?????????????????????????????????????????????????? | | ?????????????????????????????????????????????????? | | ?????????????????????????????????????????????????? | | ?????????????????????????????????????????????????? | +----------------------------------------------------+ Best States ------------- Heat Dissipation 25 Energy Generation 10 Energy Capacity 250 Matter Stores 300 Matter Capacity 300 Sight Range 16 Terrain Scan Range 16 Terrain Scan Density 10 Armor Coverage 150 Evasion (%) 50 Recoil Reduction 2 Item Schematics ----------------- None Robot Schematics ------------------ None Fabricated ------------ Nothing Alien Tech Used ----------------- None Achievements -------------- None Challenges ------------ None Game ------ Seed SalvageHellfireMace Manual? 0 Play Time 00:13:08 Cumulative 513.2 hours Start 2024.02.27 @ 19:16:25 End 2024.02.27 @ 19:29:10 Sessions 1 Manual Loads 0 Difficulty Rogue Special Mode None Game No. 98 Rogue 91 Adventurer 1 Explorer 6 Win Type - Total 41 Types 13/3/14/1/1/1/6/1/1 Lore% 87 Gallery% 91 Achievement% 84 Wizard Run 0 Options --------- Layout 0 ASCII 0 Keyboard 0 Movement Mouse Keybinds 0 Fullscreen 1 Font 24/Smallcaps Map View 76x50 Zoom Use 0% Tactical HUD 1 Map Filters NONE Filters NONE Steam 1 RUN: 7e0b5929-4f83-4b39-889f-b2424c2b1506